Cogmind - Beta 9.6 @@@ ROGUE MODE // 2020.05.20 @ 10:12:42 Player: Teratos Result: Self-destructed Performance ------------- Evolutions (2) 1000 Regions Visited (3) 600 Robots Destroyed (18) 90 Value Destroyed (629) 629 Prototype IDs (4) 80 Alien Tech Used (0) 0 Bonus (0) 0 TOTAL SCORE: 2399 Bonus ------- None Cogmind --------- Core Integrity 455/550 Matter 300/300 Energy 55/125 System Corruption 0% Temperature Cool (277) Movement Walking (150) Ox1 Location -8/Materials Parts ------- > --- POWER (1) -------- Light Ion Engine > --- PROPULSION (2) --- Aluminum Leg > --- UTILITY (2) ------ Improved Heat Sink > --- WEAPON (6) ------- Heavy EM Shotgun Heavy Particle Gun > --- INVENTORY (4) ---- Structural Scanner Heavy EM Shotgun Peak State ------------ > --- POWER ------------ Light Nuclear Core > --- PROPULSION ------- Aluminum Leg Aluminum Leg > --- UTILITY ---------- Improved Heat Sink Recoil Stabilizer > --- WEAPON ----------- Heavy EM Shotgun Particle Gun Heavy Particle Gun Heavy Particle Gun Heavy Particle Gun Heavy Particle Cannon > --- INVENTORY -------- Structural Scanner Shotgun [Rating: 32] Favorites ----------- Power Ion Engine Engine Ion Engine Power Core Light Nuclear Core Propulsion Aluminum Leg Leg Aluminum Leg Flight Unit Improved VTOL Module Utility Recoil Stabilizer Device Recoil Stabilizer Weapon Particle Gun Energy Gun Particle Gun Energy Cannon Beam Cannon Ballistic Gun Shotgun Build | -11 -10 -9 -8 ------- Run | Scr Mat Mat Mat Slots Evolved 4 | . . 2 2 Power . | . . . . Propulsion . | . . . . Utility . | . . . . Weapon 4 | . . 2 2 Parts Attached 35 | 4 6 . 25 Power 3 | . 1 . 2 Engine 2 | . 1 . 1 Core 1 | . . . 1 Reactor . | . . . . Propulsion 8 | 2 . . 6 Treads . | . . . . Leg 7 | 2 . . 5 Wheel . | . . . . Hover . | . . . . Flight 1 | . . . 1 Utility 8 | . 3 . 5 Device 8 | . 3 . 5 Storage . | . . . . Processor . | . . . . Hackware . | . . . . Protection . | . . . . Artifact . | . . . . Weapon 16 | 2 2 . 12 Energy Gun 11 | 2 . . 9 Energy Cannon 4 | . 2 . 2 Ballistic Gun 1 | . . . 1 Ballistic Cannon . | . . . . Launcher . | . . . . Special Weapon . | . . . . Impact Weapon . | . . . . Slashing Weapon . | . . . . Piercing Weapon . | . . . . Special Melee Weapon . | . . . . Unidentified Prototypes 4 | . . . 4 Parts Lost 17 | . 3 2 12 Power 2 | . . 1 1 Propulsion 4 | . . 1 3 Utility 2 | . 1 . 1 Weapon 9 | . 2 . 7 Highest Loss Streak 6 | . 2 1 6 Average Slot Usage (%) 67 | . 84 38 64 Engine 3 | . 6 5 1 Leg 18 | . 28 21 12 Device 16 | . 23 11 14 Energy Gun 16 | . 3 . 26 Energy Cannon 10 | . 21 . 7 Naked Turns . | . . . . Heaviest Build 29 | 4 13 6 29 Greatest Support 20 | 20 20 20 20 Greatest Overweight (x) 7 | . . . 7 Average Overweight (x) . | . . . 1 Largest Inventory Capacity 4 | 4 4 4 4 Average Capacity 4 | 4 4 4 4 Most Carried 4 | . . . 4 Average Carried . | . . . 1 Final Capacity 4 | 4 4 4 4 Final Carried 2 | . . . 2 Class Distribution -------------------- 59% | Mutant 28% | Scavenger-Executioner 4% | Scavenger-Mutant 3% | Gunner Dominant Class ---------------- Mutant | -10/Materials Mutant | -9/Materials Scavenger-Executioner | -8/Materials Resources | -11 -10 -9 -8 ----------- Run | Scr Mat Mat Mat Matter Collected 511 | 139 149 . 223 Remotely . | . . . . Salvage Created 786 | . 211 . 575 Parts 35 | . 13 . 22 Haulers Intercepted 3 | . 1 . 2 Recyclers Shooed . | . . . . Parts Field Recycled . | . . . . Retrieved Matter . | . . . . Parts Self-Destructed . | . . . . Prevented . | . . . . Kills | -11 -10 -9 -8 ------- Run | Scr Mat Mat Mat Combat Hostiles Destroyed 11 | . 3 . 8 Guns 5 | . . . 5 Cannons 6 | . 3 . 3 Classes Destroyed 5 | . 3 . 2 Builder 1 | . . . 1 Hauler 3 | . 1 . 2 Operator 1 | . . . 1 Watcher 2 | . 1 . 1 Grunt 11 | . 3 . 8 Best Kill Streak 3 | . 3 . 2 Combat Bots Only 2 | . 2 . 2 Max Kills in Single Turn 1 | . 1 . 1 Gunslinging . | . . . . Exploded . | . . . . Melee . | . . . . Uniques/NPCs Destroyed . | . . . . Combat | -11 -10 -9 -8 -------- Run | Scr Mat Mat Mat Damage Taken 1422 | . 387 137 898 Core 286 | . 145 46 95 Absorbed by Shields . | . . . . Core Remaining (%) 76 | 100 42 88 . Volleys Fired 51 | . 26 . 25 Largest 6 | . 2 . 6 Hottest 366 | . 120 . 366 Shots Fired 142 | . 49 . 93 Gun 75 | . . . 75 Cannon 67 | . 49 . 18 Launcher . | . . . . Special . | . . . . Kinetic 2 | . . . 2 Thermal 125 | . 49 . 76 Explosive . | . . . . Electromagnetic 15 | . . . 15 Robot Hit Streak 11 | . 8 . 11 Robot Miss Streak 5 | . 5 . 4 Penetration Max . | . . . . Secondary Targets . | . . . . Shots Hit Robots 65 | . 18 . 47 Core Hits 32 | . 8 . 24 Critical Hits 1 | . 1 . . Critical Kills 1 | . 1 . . Critical Parts Destroyed . | . . . . Melee Attacks . | . . . . Impact . | . . . . Slashing . | . . . . Piercing . | . . . . Sneak Attacks . | . . . . Combat Hostiles . | . . . . Follow-up Attacks . | . . . . Damage Inflicted 1436 | . 326 . 1110 Guns 673 | . . . 673 Cannons 496 | . 321 . 175 Explosions 264 | . 2 . 262 Melee . | . . . . Ramming 3 | . 3 . . Kinetic 19 | . . . 19 Thermal 1154 | . 323 . 831 Explosive . | . . . . Electromagnetic 260 | . . . 260 Impact . | . . . . Slashing . | . . . . Piercing . | . . . . Highest Corruption . | . . . . Average Corruption . | . . . . Corruption Purged . | . . . . Overload Shots . | . . . . Overflow Damage 33 | . 8 . 25 Projectiles 11 | . 8 . 3 Explosions 22 | . . . 22 Melee . | . . . . Knockbacks . | . . . . Impact . | . . . . Kinetic . | . . . . Secondary . | . . . . Self-Inflicted Damage 54 | . 1 . 53 Shots 1 | . . . 1 Rammed 1 | . 1 . . Targets Rammed 1 | . 1 . . Kicked . | . . . . Crushed . | . . . . Highest Temperature 607 | . 589 . 607 Average Temperature 173 | . 185 . 160 Received Heat Transfer 708 | . 189 78 441 Effects 24 | . 15 . 9 Shutdowns 4 | . 2 . 2 Energy Bleed 2 | . 2 . . Interference 5 | . 2 . 3 Matter Decay 2 | . 2 . . Damage (minor) 1 | . . . 1 Damage (major) 8 | . 5 . 3 Damage (core) 2 | . 2 . . Siege Activations . | . . . . Robots Corrupted . | . . . . Combat Hostiles . | . . . . Parts Fried 1 | . . . 1 Impact Corruptions . | . . . . Robots Melted . | . . . . Combat Hostiles . | . . . . Parts Melted 3 | . 2 . 1 Heat Transferred 2126 | . 716 . 1410 Parts Sabotaged . | . . . . Parts Stolen . | . . . . Parts Stripped . | . . . . Power Chain Reactions 3 | . . . 3 Missiles Intercepted . | . . . . Alert | -11 -10 -9 -8 ------- Run | Scr Mat Mat Mat Peak Influence 180 | . 164 65 180 Average Influence 56 | . 73 58 50 Maximum Alert Level . | . . . . Low Security (%) 100 | 100 100 100 100 Level 1 . | . . . . Level 2 . | . . . . Level 3 . | . . . . Level 4 . | . . . . Level 5 . | . . . . High Security . | . . . . Max Security . | . . . . Squads Dispatched 7 | . 1 . 6 Investigation 1 | . . . 1 Extermination . | . . . . Reinforcement 6 | . 1 . 5 Assault . | . . . . Garrison . | . . . . Intercept . | . . . . Construction Impeded . | . . . . Haulers Reinforced . | . . . . Stealth | -11 -10 -9 -8 --------- Run | Scr Mat Mat Mat Distress Signals 1 | . . . 1 Communications Jammed . | . . . . Distress Signals . | . . . . Times Spotted 38 | . 9 6 23 Peak Tracking Total 6 | . 4 5 6 Tactical Retreats 2 | . 1 . 1 Traps | -11 -10 -9 -8 ------- Run | Scr Mat Mat Mat Traps Triggered . | . . . . Indirectly . | . . . . Trap Hack Attempts . | . . . . Triggered . | . . . . Disarmed . | . . . . Reprogrammed . | . . . . Reused . | . . . . Traps Extracted . | . . . . Installed . | . . . . Triggered . | . . . . Machines | -11 -10 -9 -8 ---------- Run | Scr Mat Mat Mat Machines Disabled 7 | . 4 . 3 Max in Single Turn 3 | . 2 . 3 Machines Sabotaged . | . . . . Garrisons Compromised . | . . . . Overloaded Fab Kills . | . . . . Fab Network Shutdowns . | . . . . Hacking | -11 -10 -9 -8 --------- Run | Scr Mat Mat Mat Machines Accessed 1 | . . . 1 Terminals . | . . . . Fabricators . | . . . . Repair Stations . | . . . . Recycling Units . | . . . . Scanalyzers 1 | . . . 1 Garrison Access . | . . . . Total Hacks 10 | . . . 10 Successful 9 | . . . 9 Failed 1 | . . . 1 Catastrophic . | . . . . Database Lockouts . | . . . . Manual . | . . . . Terminals . | . . . . Fabricators . | . . . . Repair Stations . | . . . . Recycling Units . | . . . . Scanalyzers 10 | . . . 10 Garrison Access . | . . . . Terminal Hacks . | . . . . Fabricator Hacks . | . . . . Repair Station Hacks . | . . . . Recycling Unit Hacks . | . . . . Scanalyzer 9 | . . . 9 Insert Component 5 | . . . 5 Analyze 4 | . . . 4 Garrison Access Hacks . | . . . . Unauthorized Hacks . | . . . . Terminals . | . . . . Fabricators . | . . . . Repair Stations . | . . . . Recycling Units . | . . . . Scanalyzers . | . . . . Garrison Access . | . . . . Data Cores Recovered . | . . . . Used . | . . . . Hacking Detections 1 | . . . 1 Full Trace Events 1 | . . . 1 Feedback Events . | . . . . Feedback Blocked . | . . . . Robot Schematics Acquired . | . . . . Robots Built . | . . . . Matter . | . . . . Time . | . . . . Total Robot Build Rating . | . . . . Part Schematics Acquired 4 | . . . 4 Parts Built . | . . . . Matter . | . . . . Time . | . . . . Total Part Build Rating . | . . . . Parts Repaired . | . . . . Time . | . . . . Parts Recycled . | . . . . Recycled Matter . | . . . . Retrieved Matter . | . . . . Retrieved Components . | . . . . Parts Scanalyzed 4 | . . . 4 Part Schematics Acquired 4 | . . . 4 Parts Damaged 1 | . . . 1 Bothacking | -11 -10 -9 -8 ------------ Run | Scr Mat Mat Mat Used RIF Installer . | . . . . Robots Hacked . | . . . . Non-combat . | . . . . Combat . | . . . . Robot Hacks Applied . | . . . . Relay Couplers Released . | . . . . Robots Rewired . | . . . . Allies Hacked . | . . . . Hacks Repelled . | . . . . Allies | -11 -10 -9 -8 -------- Run | Scr Mat Mat Mat Total Allies . | . . . . Largest Group . | . . . . Highest-Rated Group . | . . . . Highest-Rated Ally . | . . . . Total Orders . | . . . . Ally Attacks . | . . . . Total Damage . | . . . . Kills . | . . . . Allies Corrupted . | . . . . Allies Melted . | . . . . Intel | -11 -10 -9 -8 ------- Run | Scr Mat Mat Mat Robot Analysis Total . | . . . . Derelict Logs Recovered . | . . . . Drone Launches . | . . . . Drone Recoveries . | . . . . Exploration | -11 -10 -9 -8 ------------- Run | Scr Mat Mat Mat Turns Passed 1059 | 36 312 129 582 Spaces Moved 530 | 29 167 108 226 Core 21 | 6 . . 15 Treads . | . . . . Legs 509 | 23 167 108 211 Wheels . | . . . . Hover . | . . . . Flight . | . . . . Fastest Speed 50 | 50 120 120 120 Average Speed 132 | 105 120 120 151 Slowest Speed 400 | 120 120 120 400 Overloaded Moves . | . . . . Propulsion Burnouts . | . . . . Robots Hopped . | . . . . Cave-ins Triggered . | . . . . Exploration Rate (%) 17 | 4 33 16 16 Regions Visited 3 Branch Regions . Pre-discovered Areas . | . . . . Known Exits Taken . | . . . . Unknown Exits Taken 3 | 1 1 1 . Scrap Searched . | . . . . Spaces Dug . | . . . . Terrain Destroyed 60 | . 42 . 18 Melee . | . . . . Projectile 10 | . . . 10 AOE 50 | . 42 . 8 Actions | -11 -10 -9 -8 --------- Run | Scr Mat Mat Mat Total 770 | 32 228 107 403 Wait 142 | . 26 . 116 Move 527 | 28 166 107 226 Hop . | . . . . Pick Up 2 | . . . 2 Fast Attach 27 | 4 6 . 17 Attach 6 | . . . 6 Detach 7 | . . . 7 Swap 2 | . . . 2 Drop 5 | . 3 . 2 Fire 51 | . 26 . 25 Melee . | . . . . Ram . | . . . . Kick 1 | . 1 . . Crush . | . . . . Escape Stasis . | . . . . Rewire . | . . . . Trap . | . . . . Miscellaneous . | . . . . Route ------- -11/Scrapyard -10/Materials -9/Materials -8/Materials History --------- Turn | Location | Event 3 | -11/Scrapyard | Discovered new exit (range 15) 37 | -11/Scrapyard | Entered Materials 237 | -10/Materials | Discovered new exit (range 16) 303 | -10/Materials | Build established: Mutant 310 | -10/Materials | Core integrity fell below 50% 349 | -10/Materials | Entered another Materials area 349 | -9/Materials | Evolved 2 slots: Weapon x2 462 | -9/Materials | Discovered new exit (range 14) 478 | -9/Materials | Entered another Materials area 478 | -8/Materials | Evolved 2 slots: Weapon x2 777 | -8/Materials | Lost 6 parts (1p2n3w) 1060 | -8/Materials | Self-destructed Last Messages --------------- 00994_ Acquired 2 matter. 00996_ R-06 Scavenger collects Imp. Heat Sink. 00996_ ALERT: Hostiles spotted, dispatching reinforcements to Terminal M011. 01000_ R-06 Scavenger collects Particle Gun. 01007_ O-16 Technician: "IFF HANDSHAKE FAILED. SECURING TERMINAL." 01008_ ALERT: Hostiles spotted, dispatching reinforcements to Terminal M002. 01011_ O-24 Administrator uses terminal to summon reinforcements. 01011_ ALERT: Hostiles spotted, dispatching reinforcements to Terminal M007. 01011_ O-24 Administrator locks terminal. 01030_ Aluminum Leg destroyed. 01037_ Hvy. Particle Cannon destroyed. 01047_ G-47 Trooper destroyed. 01050_ Imp. Heat Sink melted. 01050_ G-47 Trooper destroyed. 01053_ Particle Gun destroyed. 01053_ Imp. Medium Laser destroyed. 01056_ Particle Gun destroyed. Map ----- +----------------------------------------------------+ | ?????????????????????????????????????????????????? | | ?????????????????????????????????????????????????? | | ?????????????????????????????????????????????????? | | ?????????????????????????????????????????????????? | | ?????????????????????????????????????????????????? | | ?????????????????????????????????????????????????? | | ?????????????????????????????????????????????????? | | ?????????????????????????????????????????????????? | | ?????????????????????????????????????????????????? | | ?????????????????????????????????????????????????? | | ?????????????????????????????????????????????????? | | ?????????????????????????????????????????????????? | | ?????????????????????????????????????????????????? | | ?????????????????????????????????????????????????? | | ?????????????????????????????????????????????????? | | ?????????????????????????????????????????????????? | | ?????????????????????????????????????????????????? | | ?????????????????????????????????????????????????? | | ?????????????????????????????????????????????????? | | ?????????????????????????????????????????????????? | | ?????????????????????????????????????????????????? | | ????????????????????????###########??????????????? | | ????????????????????????#] ! #??????????????? | | ????????????????????????# ! T ######?????????? | | ????????????????????????# * # #?????????? | | ???????????????????????##@ g + T #?????????? | | ##############?????????#=%"""g""" # "" #?????????? | | # #?????????##%""" """ # #?????????? | | !!!# """ """ #??????????#Y""" """ ## ##?????????? | | !! # """ """ ########???# ## #??????????? | | !! # """ """ # #???############ +??????????? | | # # """#?????########?# #??????????? | | # # """#?????# #T### #??????????? | | # # """#????## #??????????? | | # # #????#" #??????????? | | ##+####+###### """#????# ##### #??????????? | | ##### """###### % "##### #??????????? | | + """## % # ######?????? | | [% ! ##### ## " " " + #?????? | | +##### #???# """## " """ # #?????? | | % # #???#!=="""## """ """" ## +?????? | | # #???#=%="""## #? #?????? | | " # #???#== ## == #? #?????? | | """ ##########+#+#######"#####+##### ???? | | " / ??? | | "" %########## ?? | | "" #????????# ! ? | | #????????#######################T##########?? | | #??????????????##????????????????#??????????? | | ######???????????????????????????????????????????? | +----------------------------------------------------+ Best States ------------- Heat Dissipation 45 Energy Generation 14 Energy Capacity 250 Matter Stores 300 Matter Capacity 300 Sight Range 16 Terrain Scan Range 14 Terrain Scan Density 10 ECM Strength 1 Evasion (%) 40 Recoil Reduction 2 Item Schematics ----------------- Hvy. Particle Cannon | -8/Materials | Scanalyzed Shotgun | -8/Materials | Scanalyzed Recoil Stabilizer | -8/Materials | Scanalyzed Structural Scanner | -8/Materials | Scanalyzed Robot Schematics ------------------ None Fabricated ------------ Nothing Alien Tech Used ----------------- None Achievements -------------- None Challenges ------------ None Game ------ Seed BottomlessFortressMachine Manual? 0 Play Time 00:12:18 Cumulative 24.6 hours Start 2020.05.20 @ 00:06:17 End 2020.05.20 @ 10:12:42 Sessions 3 Manual Loads 0 Difficulty Rogue Special Mode None Game No. 48 Rogue 48 Adventurer 0 Explorer 0 Win Type - Total 0 Types 0/0/0/0/0/0/0 Lore% 13 Gallery% 22 Achievement% 19 Wizard Run 0 Options --------- ASCII 0 Keyboard 0 Movement Numpad Keybinds 0 Fullscreen 1 Font 18/SmallcapsGlow Map View 76x50 Tactical HUD 1 Map Filters NONE Filters NONE Steam 1 RUN: e8a71ffa-5670-4585-9133-ebb30a57b788